bitfinex-derivatives/quotes_ETHF0:USTF0_20250923
["timestamp","ask_amount","ask_price","bid_price","bid_amount"]
[1758641835352,3.7564,4190.4,4190.3,0.2046]
[1758641835558,0.5486,4190.4,4190.3,1.10207]
[1758641835754,3.9718,4190.9,4190.8,0.85501]
[1758641835959,3.9718,4190.9,4190.8,0.42921]
[1758641836457,0.764,4190.9,4190.8,0.85501]
[1758641836656,3.76855,4191.5,4191.2,0.85497]
[1758641836657,0.5486,4191.3,4191.2,0.85497]
[1758641838260,0.764,4191.3,4191.2,0.85497]
[1758641838458,0.3251,4191.3,4191.2,0.85497]
[1758641838759,0.3251,4191.3,4191.2,4.20977]
[1758641838957,0.3251,4191.3,4191.2,4.45677]
[1758641839157,0.1316,4191.5,4191.4,0.85495]
[1758641839360,0.6802,4191.5,4191.4,0.85495]
[1758641839553,0.8956,4192.0,4191.9,0.8549]
[1758641840153,0.8956,4192.0,4191.9,0.4258]
[1758641840356,0.3251,4191.9,4191.8,0.247]
[1758641840559,0.764,4191.8,4191.7,3.2078]
[1758641840759,0.8956,4191.5,4191.4,0.67615]
[1758641841152,0.5705,4191.5,4190.8,3.2078]
[1758641841348,0.1316,4191.0,4190.9,0.4516]
[1758641841562,0.4567,4191.0,4190.9,1.102]
[1758641841764,0.3251,4191.0,4190.9,1.249]
[1758641842264,0.8956,4191.5,4191.4,0.63375]
[1758641842465,0.8956,4191.5,4191.4,0.88075]
[1758641842761,0.3251,4191.5,4191.4,1.24895]
[1758641844164,0.4486,4191.5,4191.4,1.10195]
[1758641845667,0.8736,4191.5,4191.4,0.63375]
[1758641845963,0.8736,4191.5,4191.4,0.88075]
[1758641846756,0.1235,4191.0,4190.8,3.2078]
[1758641846956,0.8784,4191.0,4190.9,0.4715]
[1758641847159,0.8784,4191.0,4190.9,0.9007]
[1758641847368,0.8784,4191.0,4190.9,1.1148]
[1758641847965,0.8784,4191.0,4190.9,0.6762]
[1758641848165,0.8784,4191.0,4190.9,0.9007]
[1758641848561,0.8784,4191.0,4190.9,1.1148]
[1758641849563,0.8784,4191.0,4190.9,0.4292]
[1758641849865,0.8784,4191.0,4190.9,0.6762]
[1758641850056,0.8784,4191.0,4190.9,1.1148]
[1758641850659,0.3299,4190.9,4190.8,3.63701]
[1758641850859,0.7549,4190.9,4190.8,3.2078]
[1758641851064,1.1841,4190.9,4190.8,3.2078]
[1758641851466,1.1841,4190.9,4190.8,3.63701]
[1758641851772,0.7549,4190.9,4190.8,3.63701]
[1758641852168,0.2146,4190.4,4190.3,0.42926]
[1758641852372,3.9627,4190.4,4190.3,0.42926]
[1758641853360,0.8784,4190.0,4189.9,0.2245]
[1758641853667,0.8784,4190.0,4189.9,0.42931]
[1758641854057,3.2078,4190.4,4190.3,1.01577]
[1758641854264,3.2078,4190.4,4190.3,1.26277]
[1758641854967,3.5377,4190.4,4190.3,1.26277]
[1758641855470,0.3299,4190.4,4190.3,1.26277]
[1758641856667,3.2078,4190.9,4190.8,0.2245]
[1758641856870,3.4224,4190.9,4190.8,0.86782]
[1758641857174,3.4224,4190.9,4190.8,1.01572]
[1758641857175,3.2078,4190.9,4190.8,1.01572]
[1758641857377,3.5377,4190.9,4190.8,1.01572]
[1758641858168,0.3299,4190.9,4190.8,0.86782]
[1758641858364,0.5445,4190.9,4190.8,0.86782]
[1758641860064,0.7549,4190.9,4190.8,0.86782]
[1758641861671,0.7549,4190.9,4190.8,0.67622]
[1758641861876,0.7549,4190.9,4190.8,0.90072]
[1758641862175,0.7549,4190.9,4190.8,1.11482]
[1758641865265,0.3299,4190.8,4190.6,1.28113378]
[1758641865577,0.7549,4190.4,4190.3,0.42927]
[1758641865771,0.30753759,4190.4,4190.3,0.65377]
[1758641867473,0.30753759,4190.4,4190.3,0.90077]
[1758641867672,0.63743759,4190.4,4190.3,0.90077]
[1758641868375,0.425,4190.1,4190.0,0.4293]
[1758641868581,0.8784,4190.0,4189.9,0.6538]
[1758641869476,0.8784,4190.0,4189.9,0.4293]
[1758641869780,0.8784,4190.0,4189.9,0.6538]
[1758641870177,0.2146,4190.0,4189.9,1.4275]
[1758641870380,3.9627,4190.4,4190.3,0.86787]
[1758641870980,3.9627,4190.4,4190.3,0.65377]
[1758641871177,0.42928,4190.3,4190.2,0.42928]
[1758641871383,0.42928,4190.3,4189.9,0.247]
[1758641871384,0.7549,4190.3,4189.7,0.3126]
[1758641871582,0.7549,4190.2,4190.1,0.42928]
[1758641871976,0.8784,4190.0,4189.9,0.42931]
[1758641872177,0.8784,4190.0,4189.5,4.48893378]
[1758641872378,0.5485,4189.5,4189.4,0.42936]
[1758641872682,0.8784,4189.5,4189.4,0.42936]
[1758641873175,1.30775,4189.5,4189.4,0.42936]
[1758641873381,0.8784,4189.5,4189.4,0.42936]
[1758641874182,0.8784,4189.5,4189.4,0.95876]
[1758641874383,0.7549,4189.5,4189.4,1.16206]
[1758641875277,0.5461,4189.4,4189.3,0.63697]
[1758641875482,0.7486,4189.4,4189.3,0.63697]
[1758641875686,1.17796,4189.4,4189.1,0.67638]
[1758641875886,0.4127,4189.2,4189.1,0.88398]
[1758641876087,0.7486,4189.2,4189.1,0.88398]
[1758641876384,0.7486,4189.2,4189.1,0.63698]
[1758641877477,0.5384,4189.5,4189.4,1.14516]
[1758641877982,0.2025,4189.5,4189.4,1.14516]
[1758641878175,3.2078,4189.9,4189.8,1.14512]
[1758641878380,3.2078,4189.9,4189.8,1.39112]
[1758641878979,0.3359,4190.2,4189.8,1.39112]
[1758641879178,0.3359,4190.2,4190.1,1.14509]
[1758641879179,0.5384,4190.2,4190.1,1.14509]
[1758641879589,0.7486,4190.2,4190.1,1.14509]
[1758641880189,0.7486,4190.2,4190.1,0.2076]
[1758641880391,0.8752,4190.0,4189.9,0.2076]
[1758641880581,1.3045,4190.0,4189.7,0.246]
[1758641880781,1.17791,4189.9,4189.8,0.42931]
[1758641880983,0.7486,4189.9,4189.8,0.84021]
[1758641881284,0.7486,4189.9,4189.8,1.14511]
[1758641881491,0.7486,4189.9,4189.8,0.84021]
[1758641882695,0.7486,4189.9,4189.8,1.14511]
[1758641883693,3.9564,4189.9,4189.8,0.42931]
[1758641883892,4.38571,4189.9,4189.8,0.42931]
[1758641884194,3.9564,4189.9,4189.8,0.42931]
[1758641884989,0.2025,4189.4,4189.3,0.94187]
[1758641885194,0.2025,4189.4,4189.3,0.42937]
[1758641885195,3.9564,4189.4,4189.3,0.42937]
[1758641885889,3.9564,4189.4,4188.6,2.42637378]
[1758641885890,0.2025,4188.7,4188.6,2.42637378]
[1758641886091,0.5384,4188.7,4188.6,2.67237378]
[1758641886394,0.3359,4189.0,4188.6,2.67237378]
[1758641886591,0.7486,4189.0,4188.9,1.14521]
[1758641887289,0.7486,4189.0,4188.9,1.39121]
[1758641887498,0.2025,4189.0,4188.9,1.39121]
[1758641888197,0.5384,4189.0,4188.9,1.39121]
[1758641888793,0.7486,4189.0,4188.9,1.39121]
[1758641888990,0.7486,4189.0,4188.9,0.9618]
[1758641889189,0.7486,4188.9,4188.8,0.42942]
[1758641889401,0.3359,4188.8,4188.2,0.5509]
[1758641889590,0.7486,4188.6,4188.5,0.2076]
[1758641890088,0.7486,4188.6,4188.5,0.63705]
[1758641893700,0.8541,4188.5,4188.4,0.42945]
[1758641893996,0.8541,4188.5,4188.4,0.64805]
[1758641896899,0.8541,4188.5,4188.4,0.97085]
[1758641897102,0.8541,4188.5,4188.4,1.18945]
[1758641897799,0.7315,4188.5,4188.4,1.18945]
[1758641898798,0.8541,4188.5,4188.4,0.4372]
[1758641899100,1.28355,4188.5,4188.4,0.64806]
[1758641899298,0.8541,4188.5,4188.4,0.64806]
[1758641899503,0.8541,4188.5,4188.4,1.18946]
[1758641899700,0.8541,4188.5,4188.4,0.86666]
[1758641900295,0.8541,4188.5,4188.4,1.18946]
[1758641901396,3.2078,4188.8,4188.7,1.18943]
[1758641901596,3.2078,4189.5,4189.4,1.18936]
[1758641902300,3.4153,4189.5,4189.4,1.18936]
[1758641903295,0.5418,4189.5,4189.4,1.18936]
[1758641903700,4.7875,4190.0,4189.9,0.2123]
[1758641904596,4.1122,4190.0,4189.9,0.64161]
[1758641904800,3.428,4190.0,4189.9,1.17191]
[1758641905303,3.2078,4190.0,4189.9,1.17191]
[1758641905500,3.428,4190.0,4189.9,1.17191]
[1758641905896,3.2078,4190.0,4189.9,1.17191]
[1758641906303,3.428,4190.0,4189.9,1.17191]
[1758641906605,3.9856,4190.0,4189.9,1.17191]
[1758641907313,3.428,4190.0,4189.9,1.17191]
[1758641907495,3.2078,4190.0,4189.9,1.17191]
[1758641907696,3.7623,4190.6,4190.5,0.42925]
[1758641907905,3.7623,4190.6,4190.5,1.17185]
[1758641908104,0.5545,4190.6,4190.5,1.17185]
[1758641908311,0.7778,4190.6,4190.5,0.2123]
[1758641908600,0.4435,4190.3,4189.9,0.246]
[1758641908805,0.7778,4190.2,4190.1,0.7426]
[1758641909000,0.7778,4190.2,4190.1,0.4178]
[1758641910208,0.7778,4190.2,4190.1,0.7426]
[1758641910411,0.7778,4190.2,4190.1,1.17189]
[1758641917304,0.7778,4190.2,4190.1,0.42929]
[1758641917716,0.7778,4190.2,4190.1,0.64159]
[1758641918016,0.5545,4190.5,4190.4,1.17186]
[1758641918415,0.7778,4190.9,4190.8,1.17182]
[1758641918619,0.5545,4190.9,4190.8,1.17182]
[1758641918913,0.3343,4191.3,4191.0,1.3014]
[1758641919110,0.2202,4191.5,4191.4,0.84696]
[1758641919313,0.5545,4191.5,4191.4,1.17176]
[1758641919609,0.2202,4191.5,4191.4,1.17176]
[1758641919809,0.3343,4191.8,4191.7,0.42913]
[1758641920013,0.5545,4192.0,4191.9,0.7426]
[1758641920616,3.2078,4192.2,4192.0,0.42909]
[1758641920812,0.5545,4192.2,4192.1,0.4178]
[1758641921119,0.1258,4192.0,4191.8,3.63691]
[1758641921319,0.4435,4191.9,4191.8,3.84921]
[1758641921513,0.7778,4191.9,4191.8,3.84921]
[1758641921710,0.7778,4191.9,4191.8,4.17401]
[1758641921909,0.7778,4191.9,4191.8,4.37951]
[1758641922615,0.7778,4191.9,4191.8,4.62551]
[1758641923522,0.2202,4191.9,4191.8,4.62551]
[1758641924216,0.42912,4191.8,4191.5,0.3248]
[1758641924422,1.20694,4191.6,4191.4,0.42915]
[1758641924613,0.1258,4192.0,4191.2,3.5326]
[1758641924614,0.3343,4191.4,4191.3,0.4583]
[1758641924916,0.7778,4191.4,4191.3,0.88746]
[1758641925114,0.7778,4191.4,4191.3,0.2123]
[1758641925308,0.3343,4191.3,4191.2,3.63698]
[1758641925511,0.7778,4191.3,4191.2,3.84928]
[1758641925716,0.7778,4191.3,4191.2,3.2078]
[1758641926617,0.7778,4190.9,4190.8,0.4583]
[1758641927119,0.7778,4190.9,4190.8,0.9886]
[1758641928513,0.7778,4190.9,4190.8,1.41782]
[1758641928716,0.7778,4190.9,4190.4,0.3248]
[1758641928915,0.9036,4190.5,4190.4,0.88756]
[1758641929624,0.9036,4190.5,4190.4,1.21236]
[1758641929816,0.9036,4190.5,4190.4,1.41786]
[1758641931821,0.7778,4190.5,4190.4,1.41786]
[1758641932016,0.7778,4190.9,4190.8,1.17182]
[1758641933819,0.2202,4190.9,4190.8,1.17182]
[1758641934422,0.7499,4190.9,4190.8,1.17182]
[1758641935126,0.7337,4191.3,4191.2,0.64758]
[1758641935319,0.7337,4191.3,4191.2,0.2184]
[1758641935527,1.16289,4191.1,4191.0,0.64759]
[1758641935724,0.7337,4191.1,4191.0,0.64759]
[1758641936632,0.7337,4191.1,4191.0,1.16649]
[1758641937022,1.16289,4191.1,4191.0,1.16649]
[1758641937729,0.7337,4191.1,4191.0,1.16649]
[1758641938327,1.16289,4191.1,4191.0,1.16649]
[1758641938526,1.16289,4191.1,4191.0,0.2184]
[1758641939029,1.16294,4190.6,4190.5,0.42924]
[1758641939727,0.7337,4190.4,4190.3,0.4644]
[1758641940136,0.7337,4190.4,4190.3,0.89367]
[1758641940527,3.2078,4190.4,4189.8,0.2184]
[1758641940731,0.4103,4189.9,4189.8,0.64772]
[1758641941233,0.7337,4189.9,4189.8,1.16662]
[1758641941422,3.9415,4190.4,4190.3,0.2184]
[1758641941625,3.9415,4190.4,4190.3,1.16657]
[1758641942026,0.45,4190.6,4190.5,1.28945]
[1758641942238,1.16294,4190.6,4190.5,1.16655]
[1758641942529,3.2078,4190.9,4190.5,1.28945]
[1758641942727,3.2078,4190.9,4190.8,1.16652]
[1758641943237,0.4492,4191.5,4191.1,0.4247]
[1758641943539,0.4103,4191.7,4191.6,0.7373]
[1758641943731,0.4103,4191.7,4191.6,1.16644]
[1758641943932,0.7337,4191.7,4191.6,1.16644]
[1758641944134,0.7337,4191.7,4191.6,0.4247]
[1758641944339,0.4103,4191.3,4191.2,0.531]
[1758641944634,0.4103,4191.3,4191.2,0.64758]
[1758641944635,0.7337,4191.3,4191.2,0.64758]
[1758641945231,0.7337,4191.3,4191.2,0.85388]
[1758641945434,0.7337,4191.3,4191.2,1.16648]
[1758641949928,3.4118,4192.0,4191.9,1.1664]
[1758641950134,3.2078,4192.0,4191.9,1.1664]
[1758641950727,3.9633,4192.6,4192.5,0.7714]
[1758641951038,0.0148286,4193.0,4192.9,0.7714]
[1758641952626,0.0148286,4193.0,4192.9,5.7714]
[1758641954937,0.7703286,4193.0,4192.9,0.7714]
[1758641955143,0.7703286,4193.0,4192.9,1.0174]
[1758641956037,0.7703286,4193.0,4192.9,0.7714]
[1758641956342,0.3314,4192.9,4192.5,3.5319]
[1758641956641,0.3314,4192.6,4192.5,4.40824]
[1758641956842,0.5378,4192.6,4192.5,4.65424]
[1758641957336,0.7555,4192.6,4192.5,3.6551]
[1758641958035,0.7555,4192.6,4192.5,3.2078]
[1758641958242,0.4241,4192.4,4192.3,0.67506]
[1758641958434,0.1410286,4193.0,4192.3,0.6933]
[1758641958635,0.7555,4192.9,4192.8,0.5472]
[1758641959125,1.1845,4192.9,4192.8,0.7714]
[1758641959742,1.1845,4192.9,4192.8,0.4473]
[1758641962240,0.42902,4192.7,4192.6,0.42903]
[1758641962434,0.85312,4192.7,4192.6,0.65213]
[1758641962633,1.18452,4192.7,4192.6,0.87633]
[1758641962842,1.18452,4192.7,4192.6,1.20043]
[1758641963040,0.7555,4192.7,4192.2,0.3294]
[1758641963240,1.18626,4192.4,4192.3,0.64706]
[1758641963639,1.18626,4192.4,4192.3,0.218]
[1758641963835,0.42908,4192.1,4192.0,0.42909]
[1758641964039,0.85648,4192.1,4192.0,0.64709]
[1758641964245,1.18628,4192.1,4192.0,0.64709]
[1758641964544,0.8898,4192.0,4191.9,3.6369]
[1758641964844,1.31889,4192.0,4191.9,0.218]
[1758641965244,1.31889,4192.0,4191.6,0.218]
[1758641965245,0.4274,4191.7,4191.6,0.218]
[1758641965543,1.18634,4191.6,4191.5,0.42915]
[1758641965845,1.31895,4191.5,4191.4,3.4258]
[1758641966038,1.31895,4191.5,4191.4,3.85496]
[1758641966238,0.8898,4191.5,4191.4,3.85496]
[1758641966451,0.8898,4191.5,4191.4,4.40296]
[1758641966636,0.7572,4191.5,4191.4,4.40296]
[1758641967440,1.18635,4191.5,4191.4,4.40296]
[1758641967639,1.31895,4191.5,4191.4,4.07356]
[1758641967942,1.31895,4191.5,4191.4,4.40296]
[1758641968242,0.42917,4191.3,4191.2,0.64717]
[1758641968556,0.7572,4191.3,4191.2,0.86577]
[1758641968738,0.7572,4191.3,4191.2,1.19517]
[1758641969943,0.2229,4191.3,4191.2,1.19517]
[1758641970337,0.2229,4191.3,4191.2,0.766]
[1758641970338,1.18637,4191.3,4191.2,0.766]
[1758641970540,1.18637,4191.3,4191.2,0.4366]
[1758641970940,1.18637,4191.3,4191.2,0.86578]
[1758641971146,0.7572,4191.3,4191.2,1.19518]
[1758641971347,1.18637,4191.3,4191.2,1.19518]
[1758641971645,1.18637,4191.3,4191.2,0.4366]
[1758641973037,1.18637,4191.3,4190.9,3.5372]
[1758641973038,0.4274,4190.9,4190.8,0.218]
[1758641973247,0.7572,4190.9,4190.8,0.218]
[1758641973554,1.18641,4190.9,4190.8,0.218]
[1758641973841,1.18642,4190.8,4190.7,0.766]
[1758641974047,1.18642,4190.8,4190.7,1.19523]
[1758641974234,1.18642,4190.8,4190.7,0.766]
[1758641974441,1.18642,4190.8,4190.7,0.4366]
[1758641974641,1.18642,4190.8,4190.7,0.218]
[1758641975945,0.42928,4190.3,4190.2,0.218]
[1758641976142,1.18648,4190.3,4190.2,0.4366]
[1758641976341,1.18648,4190.3,4190.2,0.766]
[1758641976537,1.18648,4190.3,4190.2,0.4366]
[1758641976748,0.4293,4190.0,4189.9,3.2078]
[1758641976945,1.3191,4190.0,4189.9,3.4258]
[1758641977345,1.3191,4190.0,4189.9,3.9738]
[1758641977750,1.3191,4190.0,4189.9,0.766]
[1758641978453,1.3191,4190.0,4189.9,1.19531]
[1758641978749,1.3191,4190.0,4189.9,0.766]
[1758641979252,1.3191,4190.0,4189.9,1.19531]
[1758641979452,1.3191,4190.0,4189.9,0.766]
[1758641979654,1.3191,4190.0,4189.9,0.64731]
[1758641980050,1.3191,4190.0,4189.9,1.19531]
[1758641980051,0.8898,4190.0,4189.9,1.19531]
[1758641980547,1.3191,4190.0,4189.9,0.766]
[1758641980747,0.4274,4189.8,4189.7,0.64732]
[1758641980953,0.7572,4189.8,4189.7,0.64732]
[1758641981152,0.7572,4189.8,4189.7,1.19532]
[1758641984341,1.0022,4190.4,4190.3,0.64726]
[1758641984650,1.67013,4190.4,4190.3,0.218]
[1758641984842,1.18648,4190.2,4190.1,0.218]
[1758641985447,1.18648,4190.2,4190.1,0.64729]
[1758641985651,1.18648,4190.2,4190.1,0.218]
[1758641986554,1.18648,4190.2,4190.1,0.64729]
[1758641987555,1.18648,4190.2,4190.1,0.218]
[1758641988154,0.4293,4190.0,4189.9,0.5474]
[1758641988358,0.7572,4189.7,4189.3,3.2078]
[1758641988553,1.07333,4189.8,4189.1,1.19538]
[1758641988554,1.18658,4189.2,4189.1,1.19538]
[1758641988948,0.5527,4189.2,4189.1,1.19538]
[1758641989353,0.2229,4189.2,4189.1,1.19538]
[1758641990453,0.5527,4189.5,4189.4,1.19536]
[1758641990658,3.965,4190.0,4189.9,0.766]
[1758641990855,4.3943,4190.0,4189.9,1.19531]
[1758641991256,3.2078,4190.0,4189.9,1.19531]
[1758641992950,3.3404,4190.5,4189.9,0.4366]
[1758641993154,1.17147,4190.3,4190.2,0.96297]
[1758641993856,1.17147,4190.3,4190.2,1.17417]
[1758641994059,0.4224,4189.9,4189.8,3.418]
[1758641994355,0.7422,4189.9,4189.8,3.84731]
[1758641994655,1.17151,4189.9,4189.8,3.2078]
[1758641994856,1.17151,4189.9,4189.8,3.84732]
[1758641995058,1.17151,4189.9,4189.8,3.63712]
[1758641996362,0.7422,4189.2,4189.1,1.17429]
[1758641996560,0.7422,4189.2,4189.1,1.41929]
[1758641997962,1.17158,4189.2,4189.1,1.41929]
[1758641998161,0.7422,4189.2,4189.1,1.41929]
[1758641998363,1.17158,4189.2,4189.1,1.09579]
[1758641998562,0.42942,4188.9,4188.5,4.48893378]
[1758641998762,0.7422,4188.6,4188.5,4.38215]
[1758642000472,0.7422,4188.6,4188.4,0.245]
[1758642000473,1.17168,4188.2,4188.0,3.2078]
[1758642000758,1.20234,4188.5,4187.9,0.2102]
[1758642000759,1.3004,4188.0,4187.9,0.2102]
[1758642001461,0.42954,4187.7,4187.5,3.63735]
[1758642001661,0.7422,4187.6,4187.5,3.84755]
[1758642001963,0.5251,4187.6,4187.5,4.38225]
[1758642002268,0.2053,4188.0,4187.9,0.4214]
[1758642002566,0.2053,4188.0,4187.9,1.17441]
[1758642002868,0.7422,4188.0,4187.9,1.17441]
[1758642003967,0.8709,4188.0,4187.9,0.2102]
[1758642005861,0.7422,4187.6,4187.5,3.418]
[1758642006370,0.7422,4187.6,4187.5,3.84756]
[1758642006571,0.7422,4187.6,4187.5,4.38226]
[1758642006766,0.5251,4187.6,4187.5,4.51186]
[1758642007072,0.2053,4187.6,4187.5,4.51186]
[1758642007569,0.7422,4187.6,4187.5,4.38226]
[1758642009473,0.2053,4187.6,4187.5,4.51186]
[1758642009867,0.8709,4188.0,4187.9,0.42952]
[1758642010072,0.8709,4188.0,4187.9,1.17442]
[1758642010264,0.7422,4188.0,4187.9,1.17442]
[1758642010775,0.7422,4188.4,4188.3,0.4214]
[1758642010971,0.7422,4188.4,4188.3,1.17438]
[1758642011276,1.17167,4188.4,4188.3,1.17438]
[1758642011477,0.7422,4188.4,4188.3,1.17438]
[1758642012170,0.9974,4188.8,4188.7,0.63513]
[1758642012371,1.42683,4188.8,4188.7,0.2057]
[1758642012871,0.7524,4188.8,4188.7,1.18034]
[1758642014073,0.2242,4188.8,4188.7,1.18034]
[1758642014262,0.7782,4189.1,4189.0,0.7509]
[1758642014576,0.9974,4189.1,4189.0,1.18031]
[1758642014767,0.9974,4189.1,4188.6,0.6687]
[1758642014768,0.7524,4188.7,4188.6,0.6687]
[1758642014967,0.7524,4188.7,4188.6,0.9959]
[1758642015574,0.7524,4188.7,4188.6,0.42945]
[1758642016176,0.7524,4188.7,4188.6,0.63515]
[1758642016572,0.42946,4188.5,4188.3,0.3272]
[1758642016766,0.42949,4188.2,4188.1,3.4528]
[1758642016974,1.18189,4188.2,4188.1,3.4528]
[1758642017164,1.18189,4188.2,4188.1,3.2078]
[1758642017369,1.18189,4188.2,4188.1,3.4135]
[1758642017565,1.18189,4188.2,4188.1,3.2078]
[1758642017772,0.1315,4188.0,4187.6,3.2078]
[1758642017963,1.18194,4187.7,4187.6,4.08805]
[1758642018170,0.7524,4187.7,4187.6,4.08805]
[1758642018372,0.7524,4187.7,4187.6,4.63325]
[1758642018972,1.18194,4187.7,4187.6,4.63325]
[1758642019176,0.7524,4187.7,4187.6,4.63325]
[1758642019376,0.2242,4187.7,4187.6,4.63325]
[1758642019573,0.5332,4187.7,4187.6,4.63325]
[1758642019981,1.18194,4187.7,4187.6,3.8765]
[1758642020275,0.5332,4187.7,4187.6,4.63325]
[1758642020479,0.2242,4187.7,4187.6,4.63325]
[1758642021172,0.96274,4187.7,4187.6,4.63325]
[1758642021379,0.7524,4187.7,4187.6,4.63325]
[1758642021975,1.18194,4187.7,4187.6,4.63325]
[1758642022175,0.7524,4187.7,4187.6,4.63325]
[1758642022372,1.18194,4187.7,4187.6,4.63325]
[1758642022572,0.7524,4187.7,4187.6,4.63325]
[1758642023680,1.18194,4187.7,4187.6,4.63325]
[1758642024081,0.7524,4187.7,4187.6,4.63325]
[1758642024476,1.18194,4187.7,4187.6,4.2037]
[1758642024777,0.7524,4187.7,4187.6,4.63325]
[1758642024981,0.7524,4187.7,4187.6,1.42545]
[1758642025277,0.1315,4188.0,4187.2,0.7468]
[1758642025278,0.7323,4187.3,4187.2,0.7468]
[1758642025683,0.7323,4187.3,4187.2,1.17639]
[1758642025982,0.7323,4187.3,4186.8,0.3156]
[1758642026181,0.4296,4187.2,4187.0,0.42962]
[1758642026482,0.7323,4187.1,4187.0,0.63662]
[1758642026682,1.16191,4187.1,4187.0,0.207]
[1758642027081,0.7323,4186.8,4186.7,0.7468]
[1758642027480,0.7323,4186.8,4186.7,1.17645]
[1758642030581,0.7323,4186.8,4186.7,0.7468]
[1758642030783,0.4232,4186.8,4186.6,3.2078]
[1758642030983,0.7323,4186.7,4186.6,3.84446]
[1758642031183,0.7323,4186.7,4186.6,4.38426]
[1758642031582,0.7323,4186.7,4186.4,0.42968]
[1758642031583,0.56387,4186.5,4186.4,0.42968]
[1758642031781,0.56387,4186.5,4186.2,0.6367]
[1758642031782,0.7323,4186.3,4186.2,0.6367]
[1758642032385,0.7323,4186.3,4186.2,1.1765]
[1758642032890,0.5153,4186.3,4186.2,1.1765]
[1758642033190,0.2062,4186.3,4186.2,1.1765]
[1758642034092,0.5153,4186.3,4186.2,1.1765]
[1758642034481,1.16199,4186.3,4186.2,0.6367]
[1758642034686,0.1342,4186.5,4186.0,3.2078]
[1758642034687,0.5153,4186.1,4186.0,3.84452]
[1758642034884,0.5153,4186.1,4186.0,4.20092]
[1758642034885,0.2062,4186.1,4186.0,4.20092]
[1758642035285,0.2062,4186.1,4186.0,4.51652]
[1758642035585,0.5153,4186.4,4186.3,1.17649]
[1758642036181,0.4232,4186.4,4186.0,3.2078]
[1758642036382,0.4232,4186.4,4185.5,3.2078]
[1758642036383,0.42976,4185.6,4185.5,3.2078]
[1758642036596,1.16206,4185.6,4185.5,3.2078]
[1758642036890,0.7323,4185.6,4185.5,3.4148]
[1758642037088,0.7323,4185.6,4185.5,3.9546]
[1758642037291,1.16206,4185.6,4185.5,3.9546]
[1758642037593,0.7323,4185.6,4185.5,4.06877]
[1758642037793,0.7323,4185.6,4185.5,4.38437]
[1758642037996,1.16206,4185.6,4185.5,4.38437]
[1758642038490,0.7323,4185.6,4185.5,4.38437]
[1758642038889,1.16206,4185.6,4185.5,4.38437]
[1758642039095,0.7323,4185.6,4185.5,4.38437]
[1758642039784,0.42968,4186.3,4186.2,0.42969]
[1758642039990,4.36977,4186.4,4186.3,0.7468]
[1758642040193,0.85291,4186.1,4186.0,0.207]
[1758642040388,1.16201,4186.1,4186.0,0.63671]
[1758642040591,1.16201,4186.1,4186.0,0.207]
[1758642041093,0.7323,4186.1,4186.0,1.17651]
[1758642041283,0.5261,4186.1,4186.0,1.17651]
[1758642041488,0.94499,4186.2,4186.1,0.7468]
[1758642041688,0.42972,4186.0,4185.9,0.207]
[1758642041887,1.29622,4186.0,4185.9,0.207]
[1758642042085,1.29622,4186.0,4185.9,0.63672]
[1758642042898,1.29622,4186.0,4185.9,0.207]
[1758642044096,0.8665,4186.0,4185.9,0.63672]
[1758642044292,1.29621,4186.0,4185.9,0.207]
[1758642044501,1.29621,4186.0,4185.9,0.63672]
[1758642044695,0.8665,4186.0,4185.9,1.17652]
[1758642045292,1.29621,4186.0,4185.9,1.17652]
[1758642045593,0.2062,4186.1,4186.0,1.1765]
[1758642045793,0.5153,4186.1,4186.0,1.1765]
[1758642045993,0.63588,4186.3,4186.2,0.86089]
[1758642046294,0.63588,4186.3,4186.2,1.17649]
[1758642046497,0.94498,4186.3,4186.2,0.7468]
[1758642046694,1.16198,4186.3,4186.2,0.7468]
[1758642046998,1.16198,4186.3,4186.2,0.4312]
[1758642047500,0.1342,4186.0,4185.7,0.42974]
[1758642047695,1.29621,4186.0,4185.9,0.207]
[1758642047900,0.7323,4186.0,4185.9,1.17652]
[1758642048198,0.2062,4186.0,4185.9,1.17652]
[1758642049103,0.245,4186.2,4186.1,0.4297]
[1758642049299,0.245,4186.2,4186.1,0.8609]
[1758642049501,0.4512,4186.2,4186.1,1.1765]
[1758642049800,0.7603,4186.2,4186.1,1.1765]
[1758642050197,1.40699,4186.2,4186.1,0.7468]
[1758642050601,1.16205,4185.7,4185.6,0.7468]
[1758642051201,1.16205,4185.7,4185.6,1.17655]
[1758642051202,0.7323,4185.7,4185.6,1.17655]
[1758642052690,1.16205,4185.7,4185.6,1.17656]
[1758642052894,0.73884,4185.8,4185.7,1.17655]
[1758642053105,0.94504,4185.8,4185.7,1.17655]
[1758642053404,0.5153,4185.8,4185.7,1.17655]
[1758642053798,0.2062,4185.8,4185.7,1.17655]
[1758642054902,1.2044,4186.2,4186.1,0.4303]
[1758642055102,1.411,4186.2,4186.1,0.7544]
[1758642055505,0.98691,4186.0,4185.9,0.64192]
[1758642055699,1.29431,4186.0,4185.9,0.2122]
[1758642056412,1.29431,4186.0,4185.9,0.96602]
[1758642056699,0.8646,4186.0,4185.9,1.18412]
[1758642057002,1.29431,4186.0,4185.9,1.18412]
[1758642057504,0.7363,4186.0,4185.9,1.18412]
[1758642057700,1.29431,4186.0,4185.9,0.2122]